bitfinex-derivatives/quotes_SOLF0:USTF0_20250501
["timestamp","ask_amount","ask_price","bid_price","bid_amount"]
[1746093364063,6.6023,151.44,151.42,6.603]
[1746093364761,6.602,151.45,151.42,6.603]
[1746093365061,7.82957486,151.46,151.43,6.6025]
[1746093365363,14.43137486,151.46,151.43,6.6025]
[1746093366160,6.6019,151.45,151.43,6.6025]
[1746093366368,6.6019,151.45,151.42,6.6029]
[1746093366757,6.6029,151.43,151.38,23.72]
[1746093367262,6.6024,151.44,151.38,23.72]
[1746093367863,6.6024,151.44,151.42,6.6031]
[1746093368059,6.6019,151.45,151.42,6.6031]
[1746093368565,6.6021,151.45,151.38,23.72]
[1746093368964,6.6021,151.45,151.42,6.6031]
[1746093370368,6.6023,151.44,151.42,6.6031]
[1746093370567,31.54957486,151.48,151.43,6.6024]
[1746093371265,6.6021,151.45,151.42,6.603]
[1746093372265,6.6016,151.46,151.43,6.6025]
[1746093372472,31.54957486,151.48,151.38,23.72]
[1746093372655,23.72,151.48,151.38,23.72]
[1746093372964,6.6018,151.46,151.38,23.72]
[1746093373367,6.6018,151.46,151.43,6.6024]
[1746093373559,6.601,151.47,151.38,23.72]
[1746093373871,23.72,151.48,151.38,23.72]
[1746093374060,6.6014,151.46,151.43,6.6022]
[1746093376566,6.6018,151.45,151.42,6.6029]
[1746093376872,23.72,151.48,151.38,23.72]
[1746093377267,23.72,151.48,151.43,6.6024]
[1746093377470,23.72,151.48,151.38,23.72]
[1746093377962,6.6021,151.45,151.42,6.6027]
[1746093378164,23.72,151.48,151.38,23.72]
[1746093378467,6.6016,151.46,151.38,23.72]
[1746093378869,23.72,151.48,151.38,23.72]
[1746093379162,6.6018,151.45,151.42,6.6028]
[1746093379370,6.6018,151.45,151.38,23.72]
[1746093379567,23.72,151.48,151.38,23.72]
[1746093379768,6.6018,151.46,151.43,6.6024]
[1746093379968,23.72,151.48,151.43,6.6024]
[1746093380766,6.6017,151.46,151.43,6.6024]
[1746093381374,6.6017,151.46,151.44,6.602]
[1746093381672,6.6018,151.45,151.38,23.72]
[1746093382473,6.6016,151.46,151.43,6.6024]
[1746093382971,23.72,151.48,151.42,6.6029]
[1746093383474,23.72,151.48,151.38,23.72]
[1746093384273,31.54957486,151.48,151.38,23.72]
[1746093384472,23.72,151.48,151.38,23.72]
[1746093384668,6.6021,151.45,151.42,6.6029]
[1746093385373,6.6022,151.44,151.42,6.6029]
[1746093385576,23.72,151.48,151.42,6.6029]
[1746093385776,6.6021,151.45,151.42,6.6029]
[1746093386271,33.74437486,151.51,151.42,23.92]
[1746093386467,31.74957486,151.51,151.42,23.92]
[1746093386667,31.74957486,151.51,151.45,6.6016]
[1746093386873,6.601,151.47,151.45,6.6016]
[1746093387274,6.601,151.47,151.44,6.602]
[1746093387476,6.6014,151.46,151.43,6.093]
[1746093387770,6.6014,151.46,151.43,12.6954]
[1746093388277,6.6014,151.46,151.43,6.093]
[1746093388473,6.6011,151.47,151.44,6.6021]
[1746093388877,31.74957486,151.51,151.44,6.6021]
[1746093389477,6.6012,151.47,151.44,6.6021]
[1746093390176,31.74957486,151.51,151.43,6.093]
[1746093390681,31.74957486,151.51,151.46,6.6011]
[1746093390976,6.6003,151.49,151.43,6.093]
[1746093391171,23.92,151.51,151.47,6.6006]
[1746093391572,6.6003,151.49,151.43,6.093]
[1746093391771,6.6003,151.49,151.46,6.601]
[1746093392673,6.6003,151.49,151.47,6.6009]
[1746093393982,6.6003,151.49,151.46,6.6012]
[1746093395282,6.6005,151.48,151.46,6.6012]
[1746093395581,23.92,151.51,151.46,6.6012]
[1746093395781,6.5991,151.52,151.47,23.78]
[1746093395982,16.89982,151.54,151.47,23.78]
[1746093396182,24.72939486,151.54,151.47,23.78]
[1746093396983,24.72939486,151.54,151.47,30.3807]
[1746093397281,6.6,151.5,151.47,30.3807]
[1746093398082,6.6002,151.49,151.47,30.3807]
[1746093398885,6.5998,151.5,151.47,30.3807]
[1746093399184,24.72939486,151.54,151.47,30.3807]
[1746093399185,24.72939486,151.54,151.47,23.78]
[1746093399981,6.6,151.5,151.47,23.78]
[1746093400285,24.72939486,151.54,151.47,23.78]
[1746093400484,7.82957486,151.51,151.43,6.093]
[1746093400688,6.6009,151.48,151.43,29.873]
[1746093401084,6.6009,151.48,151.46,6.6013]
[1746093402390,6.6003,151.49,151.46,6.6013]
[1746093402786,7.82957486,151.51,151.46,6.6013]
[1746093403187,6.6007,151.48,151.45,6.6017]
[1746093404088,7.82957486,151.51,151.45,6.6017]
[1746093404280,6.6009,151.47,151.45,6.6017]
[1746093404477,6.6009,151.47,151.44,6.602]
[1746093405088,6.6016,151.46,151.43,36.4753]
[1746093406590,6.6019,151.45,151.43,36.4753]
[1746093407183,6.6022,151.44,151.43,23.78]
[1746093407681,6.602,151.45,151.43,23.78]
[1746093408491,6.602,151.45,151.43,30.3826]
[1746093409587,7.82957486,151.48,151.44,6.6022]
[1746093409783,7.82957486,151.51,151.44,6.6022]
[1746093411686,6.6013,151.47,151.44,6.6022]
[1746093411895,7.82957486,151.51,151.44,6.6022]
[1746093412191,6.6016,151.46,151.44,6.6022]
[1746093413293,6.6018,151.45,151.43,30.3825]
[1746093413597,7.82957486,151.51,151.43,23.78]
[1746093415089,6.6011,151.47,151.45,6.6016]
[1746093416391,7.82957486,151.51,151.43,23.78]
[1746093416595,6.6014,151.46,151.44,6.602]
[1746093417098,6.6011,151.47,151.45,6.6018]
[1746093417397,6.6011,151.47,151.43,23.78]
[1746093417695,7.82957486,151.51,151.43,23.78]
[1746093418198,6.6019,151.45,151.43,30.3825]
[1746093419603,6.6022,151.44,151.43,23.78]
[1746093420699,6.602,151.45,151.43,30.3827]
[1746093420887,6.602,151.45,151.43,6.6027]
[1746093421698,6.602,151.45,151.42,6.6029]
[1746093421999,6.6025,151.44,151.42,6.6029]
[1746093422392,7.82957486,151.51,151.42,6.6029]
[1746093422593,7.82957486,151.48,151.42,6.6029]
[1746093422789,31.60957486,151.48,151.42,6.6029]
[1746093423303,6.6023,151.44,151.42,6.6029]
[1746093423501,31.60957486,151.48,151.4,23.78]
[1746093423702,31.60957486,151.48,151.39,23.78]
[1746093424697,6.6025,151.44,151.39,23.78]
[1746093425104,6.6025,151.44,151.41,6.6035]
[1746093425502,31.60957486,151.48,151.39,23.78]
[1746093425698,7.82957486,151.45,151.36,522.52]
[1746093425898,7.82957486,151.45,151.37,23.74]
[1746093426602,6.6029,151.43,151.4,6.6037]
[1746093427102,6.6029,151.43,151.37,23.74]
[1746093427304,6.6029,151.43,151.41,6.6033]
[1746093428504,6.6024,151.44,151.41,6.6033]
[1746093428702,6.6024,151.44,151.42,6.6031]
[1746093428903,31.56957486,151.43,151.31,23.74]
[1746093429103,6.6038,151.41,151.37,6.6051]
[1746093430004,6.6042,151.4,151.37,6.6051]
[1746093430197,6.6042,151.4,151.34,3.9986]
[1746093430198,23.74,151.42,151.36,6.6055]
[1746093430398,23.74,151.42,151.34,3.9986]
[1746093430599,6.6047,151.39,151.34,3.9986]
[1746093431102,23.74,151.42,151.35,6.606]
[1746093431299,6.6051,151.38,151.35,6.606]
[1746093431500,23.74,151.42,151.34,10.6051]
[1746093431807,7.82957486,151.4,151.34,3.9986]
[1746093432308,6.6055,151.37,151.34,3.9986]
[1746093432908,6.6055,151.37,151.34,10.6049]
[1746093433311,6.6055,151.37,151.34,3.9986]
[1746093434206,6.6055,151.37,151.34,10.605]
[1746093434511,6.6055,151.37,151.34,3.9986]
[1746093435214,6.6055,151.37,151.35,6.6061]
[1746093436511,6.6055,151.37,151.34,10.605]
[1746093436708,6.6055,151.37,151.34,3.9986]
[1746093437011,6.6058,151.36,151.33,6.6068]
[1746093437208,7.82957486,151.37,151.31,23.74]
[1746093437607,6.606,151.36,151.33,6.6068]
[1746093438113,7.82957486,151.37,151.33,6.6068]
[1746093438315,27.6169,151.42,151.31,23.74]
[1746093438513,7.82957486,151.41,151.31,23.74]
[1746093439013,7.82957486,151.41,151.36,6.6057]
[1746093439214,7.82957486,151.41,151.31,23.74]
[1746093439514,7.82957486,151.41,151.36,6.6056]
[1746093439815,7.82957486,151.41,151.31,23.74]
[1746093440019,6.6049,151.38,151.35,6.6058]
[1746093440417,7.82957486,151.41,151.31,23.74]
[1746093440615,6.6049,151.38,151.34,6.6062]
[1746093440815,7.82957486,151.38,151.31,23.74]
[1746093441625,6.6055,151.37,151.34,6.6064]
[1746093442128,6.6059,151.36,151.31,23.74]
[1746093442726,6.6059,151.36,151.34,6.6065]
[1746093443025,6.6059,151.36,151.31,23.74]
[1746093443226,6.6059,151.36,151.33,6.6067]
[1746093443426,7.82957486,151.38,151.31,23.74]
[1746093443822,31.56957486,151.38,151.31,23.74]
[1746093444023,31.56957486,151.38,151.31,30.3477]
[1746093444326,31.56957486,151.38,151.29,6.1475]
[1746093444529,6.6074,151.33,151.3,6.6082]
[1746093444731,7.82957486,151.35,151.29,6.1475]
[1746093444920,7.82957486,151.35,151.28,23.74]
[1746093445123,23.74,151.34,151.24,23.74]
[1746093445816,6.6086,151.3,151.27,6.6097]
[1746093446021,23.74,151.34,151.27,6.6097]
[1746093446317,6.6086,151.3,151.27,6.6097]
[1746093446524,23.74,151.34,151.27,6.6097]
[1746093447128,7.82957486,151.32,151.26,6.6099]
[1746093447436,23.74,151.34,151.26,6.6099]
[1746093447625,6.6088,151.29,151.26,6.6099]
[1746093448319,23.74,151.34,151.25,6.6103]
[1746093448526,7.82957486,151.32,151.25,6.6103]
[1746093448726,6.6085,151.3,151.24,23.74]
[1746093449124,23.74,151.34,151.22,6.0847]
[1746093449317,6.6085,151.3,151.26,6.6097]
[1746093449522,6.6085,151.3,151.23,23.74]
[1746093449931,6.6085,151.3,151.27,6.6094]
[1746093450129,23.74,151.34,151.23,23.74]
[1746093450723,6.6091,151.29,151.26,6.6099]
[1746093450919,23.74,151.34,151.23,23.74]
[1746093451534,6.6086,151.3,151.23,23.74]
[1746093451932,6.6086,151.3,151.27,6.6095]
[1746093452533,23.74,151.34,151.26,6.6097]
[1746093453021,23.74,151.34,151.23,23.74]
[1746093453733,6.6082,151.31,151.23,23.74]
[1746093454031,23.74,151.34,151.23,23.74]
[1746093454329,7.82957486,151.33,151.23,23.74]
[1746093454535,6.6083,151.3,151.23,23.74]
[1746093454934,6.6088,151.29,151.26,6.6098]
[1746093455735,6.6085,151.3,151.27,6.6094]
[1746093457523,7.82957486,151.33,151.27,6.6094]
[1746093457727,23.74,151.34,151.23,31.56957486]
[1746093458536,6.609,151.29,151.23,23.74]
[1746093458734,7.82957486,151.33,151.23,23.74]
[1746093458931,7.82957486,151.33,151.25,6.6103]
[1746093459132,6.6095,151.28,151.25,6.6103]
[1746093460334,6.6098,151.27,151.24,6.6108]
[1746093462934,30.3488,151.3,151.23,23.74]
[1746093463239,23.74,151.34,151.23,23.74]
[1746093463641,6.6091,151.29,151.25,6.6101]
[1746093464028,7.82957486,151.32,151.25,6.6101]
[1746093464234,6.6095,151.28,151.25,6.6101]
[1746093464440,7.82957486,151.32,151.26,6.6101]
[1746093464737,7.82957486,151.32,151.23,23.74]
[1746093464937,6.6097,151.27,151.24,6.6107]
[1746093465836,6.6108,151.25,151.17,524.45052733]
[1746093466044,7.82957486,151.29,151.18,29.8194]
[1746093466539,6.6104,151.26,151.22,6.6115]
[1746093466733,6.6104,151.26,151.18,29.8194]
[1746093466934,6.6104,151.26,151.23,6.6114]
[1746093468040,7.82957486,151.29,151.18,29.8194]
[1746093468240,23.74,151.3,151.2,7.82957486]
[1746093468645,6.6095,151.28,151.25,6.6103]
[1746093469841,23.74,151.3,151.22,23.74]
[1746093471347,6.6106,151.25,151.22,30.3516]
[1746093471537,7.82957486,151.29,151.22,30.3516]
[1746093471841,6.6109,151.25,151.22,30.3516]
[1746093475337,6.6111,151.24,151.22,30.3516]
[1746093475538,6.6111,151.24,151.22,23.74]
[1746093475734,7.82957486,151.29,151.22,23.74]
[1746093475938,6.6108,151.25,151.22,23.74]
[1746093476139,6.6108,151.25,151.22,30.3516]
[1746093476444,7.82957486,151.29,151.22,30.3516]
[1746093476747,7.82957486,151.29,151.22,23.74]
[1746093477045,6.6113,151.24,151.21,6.6119]
[1746093477345,7.82957486,151.29,151.2,6.6125]
[1746093477737,6.6117,151.23,151.2,6.6125]
[1746093478044,7.82957486,151.29,151.2,6.6125]
[1746093478245,7.82957486,151.29,151.19,23.74]
[1746093478643,6.6118,151.23,151.2,6.6124]
[1746093478844,6.6118,151.23,151.19,23.74]
[1746093479046,7.82957486,151.29,151.19,23.74]
[1746093479344,23.74,151.3,151.19,23.74]
[1746093479645,6.6098,151.27,151.23,6.611]
[1746093479845,23.74,151.3,151.23,6.611]
[1746093480144,6.6101,151.27,151.24,6.6108]
[1746093482247,6.6102,151.26,151.23,6.6112]
[1746093482447,23.74,151.3,151.19,23.74]
[1746093482639,6.6099,151.27,151.24,6.611]
[1746093482836,23.74,151.3,151.19,23.74]
[1746093483041,7.82957486,151.28,151.19,23.74]
[1746093483244,6.6112,151.24,151.21,6.6121]
[1746093483849,6.6112,151.24,151.19,23.74]
[1746093484348,6.6112,151.24,151.21,6.6121]
[1746093484658,6.6115,151.23,151.19,23.74]
[1746093484947,6.6115,151.23,151.2,6.6123]
[1746093485252,6.6115,151.23,151.19,23.74]
[1746093485438,7.82957486,151.28,151.19,23.74]
[1746093485949,6.6125,151.21,151.19,23.74]
[1746093486148,6.6125,151.21,151.19,30.3531]
[1746093486852,6.6121,151.22,151.19,30.3531]
[1746093487050,6.6121,151.22,151.19,23.74]
[1746093487651,6.6121,151.22,151.19,30.3529]
[1746093488752,6.6115,151.23,151.2,6.6127]
[1746093489553,6.6115,151.23,151.21,6.6122]
[1746093489853,6.6115,151.23,151.19,23.74]
[1746093490154,6.6119,151.22,151.2,6.6125]
[1746093490654,6.6119,151.22,151.19,23.74]
[1746093490850,6.6119,151.22,151.19,30.3529]
[1746093491050,6.6123,151.21,151.18,6.0794]
[1746093491354,7.82957486,151.25,151.19,6.6131]
[1746093491543,6.612,151.22,151.19,6.6131]
[1746093491953,7.82957486,151.25,151.19,6.6131]
[1746093492454,7.82957486,151.25,151.18,12.6929]
[1746093492651,6.6125,151.21,151.18,12.6929]
[1746093493148,6.6131,151.2,151.17,6.6138]
[1746093493355,7.82957486,151.25,151.16,23.74]
[1746093493656,7.82957486,151.25,151.14,6.042]
[1746093493657,7.82957486,151.22,151.14,6.042]
[1746093493849,6.6139,151.18,151.15,6.6147]
[1746093494149,31.56957486,151.22,151.15,6.6147]
[1746093494453,6.6138,151.18,151.15,6.6147]
[1746093494751,31.56957486,151.22,151.14,6.042]
[1746093494752,31.56957486,151.22,151.16,6.6145]
[1746093494953,31.56957486,151.22,151.14,6.042]
[1746093494954,6.6129,151.2,151.14,6.042]
[1746093496056,6.6129,151.2,151.17,6.6138]
[1746093496352,6.6124,151.21,151.14,6.042]
[1746093496540,6.6124,151.21,151.18,6.6134]
[1746093496745,6.6124,151.21,151.14,6.042]
[1746093496942,31.56957486,151.25,151.14,13.87157486]
[1746093497347,6.6118,151.23,151.14,13.87157486]
[1746093497551,6.6118,151.23,151.2,6.6123]
[1746093498755,6.6119,151.22,151.2,6.6123]
[1746093498952,31.56957486,151.25,151.2,6.6123]
[1746093499250,6.6117,151.23,151.2,6.6123]
[1746093499952,6.6117,151.23,151.17,23.74]
[1746093500252,6.6119,151.22,151.2,6.6125]
[1746093500454,31.56957486,151.25,151.2,6.6125]
[1746093500649,31.56957486,151.25,151.17,23.74]
[1746093500850,6.6116,151.23,151.17,23.74]
[1746093501643,31.56957486,151.25,151.17,23.74]
[1746093502054,31.56957486,151.25,151.2,6.6125]
[1746093502854,6.6116,151.23,151.2,6.6125]
[1746093504757,6.6116,151.23,151.17,23.74]
[1746093504957,31.56957486,151.25,151.17,23.74]
[1746093505259,31.56957486,151.25,151.21,6.6122]
[1746093505646,6.6115,151.23,151.17,23.74]
[1746093505851,6.6115,151.23,151.2,6.6125]
[1746093508262,6.6119,151.22,151.2,6.6125]
[1746093508463,31.56957486,151.25,151.21,6.6123]
[1746093508967,6.6116,151.23,151.21,6.6123]
[1746093509154,31.56957486,151.25,151.2,6.6125]
[1746093509459,6.6117,151.23,151.2,6.6125]
[1746093509762,31.56957486,151.25,151.18,6.6134]
[1746093509956,31.56957486,151.25,151.17,23.74]
[1746093510356,31.56957486,151.25,151.17,6.614]
[1746093510764,6.6132,151.19,151.17,6.614]
[1746093510961,6.6132,151.19,151.16,6.6143]
[1746093511863,6.6132,151.19,151.17,6.6139]
[1746093512761,7.82957486,151.22,151.14,29.782]
[1746093512961,7.82957486,151.23,151.14,29.782]
[1746093513266,7.82957486,151.23,151.17,6.6137]
[1746093513667,6.6127,151.21,151.17,6.6137]
[1746093513867,6.6127,151.21,151.18,6.6135]
[1746093517669,23.74,151.25,151.17,6.6136]
[1746093518377,6.6126,151.21,151.18,6.6135]
[1746093518674,6.6126,151.21,151.14,29.782]
[1746093519174,6.6126,151.21,151.17,6.6137]
[1746093519472,6.6127,151.2,151.14,29.782]
[1746093519673,6.6127,151.2,151.16,6.6141]
[1746093519873,7.82957486,151.23,151.16,6.6141]
[1746093520074,7.82957486,151.23,151.14,29.782]
[1746093520680,6.6137,151.18,151.15,6.6147]
[1746093522479,7.82957486,151.23,151.14,29.782]
[1746093523179,6.6134,151.19,151.16,6.6142]
[1746093525479,6.6129,151.2,151.17,6.6139]
[1746093525878,7.82957486,151.23,151.17,6.6139]
[1746093526079,23.74,151.25,151.17,6.6139]
[1746093526281,6.6132,151.19,151.16,6.6142]
[1746093526983,6.6129,151.2,151.17,6.6138]
[1746093528181,6.6129,151.2,151.18,6.6135]
[1746093528381,6.6125,151.21,151.18,6.6135]
[1746093529184,6.6125,151.21,151.18,6.6132]
[1746093529482,6.6121,151.22,151.14,29.782]
[1746093529684,6.6121,151.22,151.14,37.61157486]
[1746093530786,6.6121,151.22,151.19,6.6129]
[1746093533789,6.6116,151.23,151.2,6.6127]
[1746093535591,23.74,151.25,151.17,23.74]
[1746093535886,23.74,151.25,151.14,37.61157486]
[1746093536090,23.74,151.25,151.17,6.6138]
[1746093536389,23.74,151.25,151.14,37.61157486]
[1746093536588,6.6128,151.2,151.17,6.6138]
[1746093537187,6.6133,151.19,151.16,6.6143]
[1746093537691,23.74,151.25,151.14,29.782]
[1746093537887,6.6129,151.2,151.17,6.614]
[1746093538191,23.74,151.25,151.14,29.782]
[1746093538392,6.6125,151.21,151.17,6.6139]
[1746093538988,6.6128,151.2,151.17,6.6139]
[1746093539494,6.6132,151.19,151.16,6.6142]
[1746093539688,6.6132,151.19,151.14,29.782]
[1746093539991,6.6131,151.2,151.17,6.6139]
[1746093540294,23.74,151.25,151.14,29.782]
[1746093540493,6.6126,151.21,151.17,6.6138]
[1746093540793,23.74,151.25,151.17,6.6138]
[1746093540981,23.74,151.25,151.14,29.782]
[1746093541593,6.6131,151.2,151.17,6.6138]
[1746093541793,23.74,151.25,151.14,29.782]
[1746093542095,23.74,151.25,151.17,6.614]
[1746093542897,6.6129,151.2,151.17,6.614]
[1746093543593,6.6125,151.21,151.18,6.6135]
[1746093543792,23.74,151.25,151.18,6.6135]
[1746093544198,6.6126,151.21,151.18,6.6135]
[1746093544395,23.74,151.25,151.17,6.6138]
[1746093544798,6.613,151.2,151.17,6.6138]
[1746093545298,6.6121,151.22,151.14,29.782]
[1746093545794,23.74,151.25,151.14,29.782]
[1746093546099,23.74,151.25,151.18,6.6134]
[1746093546693,6.6114,151.23,151.18,6.6134]
[1746093546894,23.74,151.25,151.15,7.82957486]
[1746093547398,6.6121,151.22,151.15,7.82957486]
[1746093547895,6.6121,151.22,151.19,6.6131]
[1746093549099,6.6121,151.22,151.18,6.6134]
[1746093549295,6.6124,151.21,151.18,6.6134]
[1746093549495,23.74,151.25,151.15,7.82957486]
[1746093549898,6.6119,151.22,151.18,6.6136]
[1746093550097,23.74,151.25,151.15,7.82957486]
[1746093550598,6.612,151.22,151.19,6.6131]
[1746093550899,23.74,151.25,151.19,6.6131]
[1746093551301,6.6118,151.23,151.19,6.6131]
[1746093551500,6.6118,151.23,151.2,6.6126]
[1746093551901,6.6118,151.23,151.15,7.82957486]
[1746093552300,6.6118,151.23,151.19,6.6128]
[1746093553301,23.74,151.25,151.18,30.3534]
[1746093554703,6.6121,151.22,151.19,6.6131]
[1746093554903,23.74,151.25,151.16,23.74]
[1746093555406,6.6121,151.22,151.19,6.6131]
[1746093555704,23.74,151.25,151.16,23.74]
[1746093556403,6.6122,151.22,151.19,6.6131]
[1746093556606,23.74,151.25,151.16,23.74]
[1746093556807,6.6121,151.22,151.16,23.74]
[1746093557416,6.6121,151.22,151.18,6.6133]
[1746093558401,6.6123,151.21,151.18,6.6133]
[1746093558610,31.56957486,151.25,151.17,6.6138]
[1746093559707,31.56957486,151.25,151.18,6.6136]
[1746093560310,31.56957486,151.25,151.19,6.6131]
[1746093561204,31.56957486,151.25,151.18,6.6134]
[1746093561406,31.56957486,151.25,151.16,23.74]
[1746093561713,31.56957486,151.25,151.17,6.6138]
[1746093562011,6.6132,151.19,151.17,6.6138]
[1746093562513,31.56957486,151.25,151.18,6.6133]
[1746093563313,6.6129,151.2,151.18,6.6133]
[1746093563814,6.6129,151.2,151.17,6.6139]
[1746093565211,23.74,151.23,151.18,6.6133]
[1746093565815,6.6125,151.21,151.18,6.6133]
[1746093566014,23.74,151.23,151.19,6.6131]
[1746093566413,6.6121,151.22,151.19,6.6131]
[1746093566615,23.74,151.23,151.18,6.6134]
[1746093566806,23.74,151.23,151.16,23.74]
[1746093567115,6.6121,151.22,151.19,6.6129]
[1746093567509,23.74,151.23,151.19,6.6129]
[1746093567711,6.6119,151.22,151.19,6.6129]
[1746093568316,6.6123,151.21,151.19,6.6129]
[1746093568514,23.74,151.23,151.19,6.6129]
[1746093568917,6.612,151.22,151.19,6.6129]
[1746093570315,23.74,151.23,151.18,6.6135]
[1746093570614,6.6124,151.21,151.18,6.6135]
[1746093571111,6.6124,151.21,151.19,6.6131]
[1746093571317,6.6124,151.21,151.16,23.74]
[1746093572319,6.6121,151.22,151.19,6.6131]
[1746093577720,6.6116,151.23,151.2,6.6127]
[1746093578531,6.6119,151.22,151.19,6.6129]
[1746093578722,23.72,151.26,151.16,23.74]
[1746093579435,6.6116,151.23,151.2,6.6126]
[1746093581832,6.6118,151.22,151.2,6.6126]
[1746093582032,23.72,151.26,151.2,6.6126]
[1746093582337,6.6116,151.23,151.2,6.6126]
[1746093583929,23.72,151.26,151.2,6.6126]
[1746093584433,6.6116,151.23,151.2,6.6126]
[1746093584935,6.6122,151.22,151.19,6.613]
[1746093585436,6.6122,151.22,151.16,23.74]
[1746093586442,6.6123,151.21,151.16,23.74]
[1746093586839,6.6123,151.21,151.18,6.6136]
[1746093587545,6.6125,151.21,151.18,6.6135]
[1746093590343,6.6127,151.2,151.17,6.6138]
[1746093590642,23.72,151.24,151.16,23.74]
[1746093591039,6.6125,151.21,151.18,6.6135]
[1746093592343,6.6127,151.2,151.18,6.6135]
[1746093592643,5.03939356,151.23,151.17,11.65319356]
[1746093592845,5.03939356,151.23,151.17,5.03939356]
[1746093593144,5.03939356,151.23,151.16,23.74]
[1746093593343,5.03939356,151.21,151.16,23.74]
[1746093593841,6.6123,151.21,151.17,6.6138]
[1746093594143,5.03939356,151.23,151.17,6.6138]
[1746093595044,5.03939356,151.23,151.18,6.6132]
[1746093595546,6.6126,151.21,151.18,6.6132]
[1746093595738,5.03939356,151.23,151.17,6.6139]
[1746093596241,6.6128,151.2,151.17,6.6139]
[1746093600549,6.6125,151.21,151.17,6.6139]
[1746093600848,5.03939356,151.23,151.17,6.6139]
[1746093601143,5.03939356,151.23,151.18,6.6135]
[1746093601345,23.72,151.24,151.18,5.03939356]
[1746093601646,5.03939356,151.23,151.18,5.03939356]
[1746093601839,5.03939356,151.23,151.16,28.77939356]
[1746093602148,6.6127,151.2,151.17,6.6137]
[1746093603348,6.6124,151.21,151.18,6.6136]
[1746093603552,5.03939356,151.25,151.17,5.03939356]
[1746093603850,5.03939356,151.25,151.19,5.03939356]
[1746093604149,6.6112,151.24,151.21,6.6121]
[1746093604445,23.72,151.27,151.21,5.03939356]
[1746093604653,5.03939356,151.29,151.23,5.03939356]
[1746093605148,11.64849356,151.29,151.23,5.03939356]
[1746093605345,11.64849356,151.29,151.24,23.72]
[1746093605550,30.3285,151.3,151.26,6.6098]
[1746093605747,6.6085,151.3,151.26,6.6098]
[1746093605942,6.6085,151.3,151.24,23.72]
[1746093606141,11.64759356,151.31,151.27,6.6096]
[1746093606343,5.03939356,151.31,151.27,6.6096]
[1746093606736,28.75939356,151.33,151.25,5.03939356]
[1746093606946,5.03939356,151.33,151.27,5.03939356]
[1746093607142,5.03939356,151.34,151.27,5.03939356]
[1746093607349,23.72,151.36,151.28,23.72]
[1746093607750,7.86137087,151.35,151.28,23.72]
[1746093608954,6.6076,151.32,151.28,30.3292]
[1746093609754,7.86137087,151.35,151.28,23.72]
[1746093610952,6.6078,151.32,151.28,30.329]
[1746093611656,6.6079,151.31,151.28,30.329]
[1746093611847,7.86137087,151.35,151.28,30.329]
[1746093612349,6.608,151.31,151.28,30.329]
[1746093612556,6.608,151.31,151.28,23.72]
[1746093612756,7.86137087,151.35,151.28,23.72]
[1746093613456,6.6069,151.34,151.3,6.6083]
[1746093613647,23.72,151.36,151.28,23.72]
[1746093614951,6.6074,151.33,151.28,23.72]
[1746093615359,23.72,151.36,151.28,23.72]
[1746093615560,23.72,151.36,151.29,2.0474]
[1746093615954,16.84727,151.38,151.29,9.90877087]
[1746093617059,6.606,151.36,151.31,6.6075]